[Event "Titled Tuesday Blitz December 20 Early 2022"]
[White "biostatistician"]
[Black "harperchesstt"]
[WhiteElo "2574"]
[BlackElo "2366"]
[Result "1-0"]
[Round "04"]
[TimeControl "180+2"]
[Date "2022.12.20"]
[WhiteClock "0:02:46"]
[BlackClock "0:00:19"]

1. d4 {[%clk 0:03:00]}  Nf6 {[%clk 0:02:58]} 2. Nf3 {[%clk 0:03:01]}  g6 {[%clk 0:02:58]} 3. c4 {[%clk 0:03:02]}  Bg7 {[%clk 0:02:59]} 4. Nc3 {[%clk 0:03:03]}  d6 {[%clk 0:02:59]} 5. e4 {[%clk 0:03:03]}  O-O {[%clk 0:03:00]} 6. Be2 {[%clk 0:03:04]}  e5 {[%clk 0:03:00]} 7. dxe5 {[%clk 0:03:05]}  dxe5 {[%clk 0:02:59]} 8. Qxd8 {[%clk 0:03:06]}  Rxd8 {[%clk 0:02:59]} 9. Bg5 {[%clk 0:03:07]}  Re8 {[%clk 0:02:57]} 10. Nd5 {[%clk 0:03:07]}  Nxd5 {[%clk 0:02:56]} 11. cxd5 {[%clk 0:03:08]}  c6 {[%clk 0:02:57]} 12. Bc4 {[%clk 0:03:09]}  cxd5 {[%clk 0:02:56]} 13. Bxd5 {[%clk 0:03:09]}  Nd7 {[%clk 0:02:56]} 14. Nd2 {[%clk 0:03:09]}  Nb6 {[%clk 0:02:52]} 15. Bb3 {[%clk 0:03:09]}  Be6 {[%clk 0:02:45]} 16. Ke2 {[%clk 0:03:09]}  Bxb3 {[%clk 0:02:35]} 17. axb3 {[%clk 0:03:10]}  Nd7 {[%clk 0:02:30]} 18. Rhc1 {[%clk 0:03:09]}  b6 {[%clk 0:02:20]} 19. Rc7 {[%clk 0:03:08]}  Nc5 {[%clk 0:02:20]} 20. Raxa7 {[%clk 0:03:07]}  Rxa7 {[%clk 0:02:18]} 21. Rxa7 {[%clk 0:03:08]}  Ne6 {[%clk 0:02:04]} 22. Be3 {[%clk 0:03:08]}  Nd4+ {[%clk 0:02:04]} 23. Bxd4 {[%clk 0:03:07]}  exd4 {[%clk 0:02:05]} 24. Kd3 {[%clk 0:03:08]}  h6 {[%clk 0:01:53]} 25. Nc4 {[%clk 0:03:07]}  f5 {[%clk 0:01:38]} 26. exf5 {[%clk 0:03:03]}  gxf5 {[%clk 0:01:39]} 27. Nxb6 {[%clk 0:03:02]}  Re1 {[%clk 0:01:40]} 28. Nd5 {[%clk 0:02:59]}  Rb1 {[%clk 0:01:36]} 29. Ne7+ {[%clk 0:02:59]}  Kf8 {[%clk 0:01:33]} 30. Nxf5 {[%clk 0:03:00]}  Be5 {[%clk 0:01:25]} 31. g3 {[%clk 0:02:53]}  Rxb2 {[%clk 0:01:24]} 32. f4 {[%clk 0:02:53]}  Rxb3+ {[%clk 0:01:06]} 33. Ke4 {[%clk 0:02:52]}  Bb8 {[%clk 0:01:05]} 34. Nxd4 {[%clk 0:02:46]}  Bxa7 {[%clk 0:00:49]} 35. Nxb3 {[%clk 0:02:46]}  Kf7 {[%clk 0:00:48]} 36. Kf5 {[%clk 0:02:45]}  Bg1 {[%clk 0:00:45]} 37. h3 {[%clk 0:02:45]}  Bh2 {[%clk 0:00:45]} 38. g4 {[%clk 0:02:45]}  Bg1 {[%clk 0:00:44]} 39. Nd2 {[%clk 0:02:45]}  Bd4 {[%clk 0:00:42]} 40. Nf3 {[%clk 0:02:45]}  Ba1 {[%clk 0:00:42]} 41. h4 {[%clk 0:02:45]}  Bb2 {[%clk 0:00:41]} 42. g5 {[%clk 0:02:45]}  hxg5 {[%clk 0:00:39]} 43. hxg5 {[%clk 0:02:46]}  Ba1 {[%clk 0:00:39]} 44. Ne5+ {[%clk 0:02:46]}  Kg7 {[%clk 0:00:37]} 45. Ke6 {[%clk 0:02:46]}  Bc3 {[%clk 0:00:31]} 46. f5 {[%clk 0:02:46]}  Bd2 {[%clk 0:00:28]} 47. f6+ {[%clk 0:02:46]}  Kh8 {[%clk 0:00:22]} 48. g6 {[%clk 0:02:47]}  Bb4 {[%clk 0:00:19]} 49. Nf7+ {[%clk 0:02:45]}  Kg8 {[%clk 0:00:19]} 50. Nh6+ {[%clk 0:02:46]} 1-0


[Site "https://www.chess.com"]

[Event "Titled Tuesday Blitz December 20 Early 2022"]
[White "dirk_da_player"]
[Black "CDOEspiao"]
[WhiteElo "2339"]
[BlackElo "2486"]
[Result "0-1"]
[Round "04"]
[TimeControl "180+2"]
[Date "2022.12.20"]
[WhiteClock "0:00:15"]
[BlackClock "0:00:26"]

1. e4 {[%clk 0:02:59]}  c5 {[%clk 0:02:58]} 2. c3 {[%clk 0:02:59]}  Qa5 {[%clk 0:02:56]} 3. Nf3 {[%clk 0:02:59]}  e6 {[%clk 0:02:56]} 4. Bd3 {[%clk 0:02:52]}  b5 {[%clk 0:02:55]} 5. O-O {[%clk 0:02:52]}  c4 {[%clk 0:02:54]} 6. Bc2 {[%clk 0:02:52]}  Bb7 {[%clk 0:02:55]} 7. d4 {[%clk 0:02:35]}  cxd3 {[%clk 0:02:55]} 8. Qxd3 {[%clk 0:02:36]}  Ne7 {[%clk 0:02:55]} 9. Nbd2 {[%clk 0:02:33]}  Ng6 {[%clk 0:02:54]} 10. Nb3 {[%clk 0:02:31]}  Qd8 {[%clk 0:02:48]} 11. Re1 {[%clk 0:02:26]}  a6 {[%clk 0:02:47]} 12. a4 {[%clk 0:02:25]}  Nc6 {[%clk 0:02:40]} 13. axb5 {[%clk 0:02:23]}  axb5 {[%clk 0:02:41]} 14. Rxa8 {[%clk 0:02:22]}  Qxa8 {[%clk 0:02:42]} 15. Qxb5 {[%clk 0:02:17]}  Be7 {[%clk 0:02:40]} 16. Qd3 {[%clk 0:02:00]}  O-O {[%clk 0:02:39]} 17. Nbd4 {[%clk 0:01:37]}  Nce5 {[%clk 0:02:38]} 18. Nxe5 {[%clk 0:01:37]}  Nxe5 {[%clk 0:02:39]} 19. Qg3 {[%clk 0:01:37]}  Ng6 {[%clk 0:02:25]} 20. Bg5 {[%clk 0:01:31]}  f6 {[%clk 0:02:24]} 21. Be3 {[%clk 0:01:22]}  Bxe4 {[%clk 0:02:17]} 22. Bxe4 {[%clk 0:01:21]}  Qxe4 {[%clk 0:02:18]} 23. Qc7 {[%clk 0:01:21]}  Qd5 {[%clk 0:02:09]} 24. c4 {[%clk 0:01:19]}  Qd6 {[%clk 0:02:09]} 25. Qxd6 {[%clk 0:01:16]}  Bxd6 {[%clk 0:02:10]} 26. Nb5 {[%clk 0:01:12]}  Bb4 {[%clk 0:02:06]} 27. Rd1 {[%clk 0:01:12]}  Ne5 {[%clk 0:02:06]} 28. b3 {[%clk 0:01:11]}  Ra8 {[%clk 0:02:03]} 29. h3 {[%clk 0:01:10]}  g5 {[%clk 0:01:45]} 30. f4 {[%clk 0:01:07]}  gxf4 {[%clk 0:01:46]} 31. Bxf4 {[%clk 0:01:07]}  d6 {[%clk 0:01:24]} 32. Kf1 {[%clk 0:00:42]}  Kf8 {[%clk 0:01:19]} 33. Nc7 {[%clk 0:00:40]}  Ra3 {[%clk 0:01:11]} 34. Nxe6+ {[%clk 0:00:39]}  Ke7 {[%clk 0:01:12]} 35. Nd4 {[%clk 0:00:39]}  Bc5 {[%clk 0:01:07]} 36. b4 {[%clk 0:00:21]}  Bxd4 {[%clk 0:00:49]} 37. Rxd4 {[%clk 0:00:22]}  Rb3 {[%clk 0:00:44]} 38. Bxe5 {[%clk 0:00:19]}  fxe5 {[%clk 0:00:44]} 39. Rh4 {[%clk 0:00:19]}  Rxb4 {[%clk 0:00:43]} 40. Rxh7+ {[%clk 0:00:19]}  Ke6 {[%clk 0:00:44]} 41. Rh6+ {[%clk 0:00:19]}  Kd7 {[%clk 0:00:44]} 42. Rh4 {[%clk 0:00:19]}  Kc6 {[%clk 0:00:43]} 43. Rg4 {[%clk 0:00:18]}  Kc5 {[%clk 0:00:42]} 44. h4 {[%clk 0:00:19]}  d5 {[%clk 0:00:38]} 45. h5 {[%clk 0:00:16]}  dxc4 {[%clk 0:00:35]} 46. h6 {[%clk 0:00:15]}  Rb1+ {[%clk 0:00:35]} 47. Kf2 {[%clk 0:00:15]}  Rh1 {[%clk 0:00:36]} 48. Rg6 {[%clk 0:00:15]}  c3 {[%clk 0:00:36]} 49. Ke2 {[%clk 0:00:15]}  c2 {[%clk 0:00:35]} 50. Rg8 {[%clk 0:00:14]}  c1=Q {[%clk 0:00:26]} 51. Rc8+ {[%clk 0:00:14]}  Kd6 {[%clk 0:00:27]} 52. Rxc1 {[%clk 0:00:15]}  Rxc1 {[%clk 0:00:27]} 53. g4 {[%clk 0:00:15]}  Ke6 {[%clk 0:00:26]} 0-1


[Site "https://www.chess.com"]

[Event "Titled Tuesday Blitz December 20 Early 2022"]
[White "fks_stal_mielec"]
[Black "Husnutdinov, Damir"]
[BlackFideId "14200910"]
[WhiteElo "2284"]
[BlackElo "2415"]
[Result "0-1"]
[Round "04"]
[TimeControl "180+2"]
[Date "2022.12.20"]
[WhiteClock "0:00:01"]
[BlackClock "0:00:13"]

1. d4 {[%clk 0:03:00]}  Nf6 {[%clk 0:02:58]} 2. c4 {[%clk 0:03:01]}  e6 {[%clk 0:02:58]} 3. Nc3 {[%clk 0:03:02]}  c5 {[%clk 0:02:59]} 4. e3 {[%clk 0:03:01]}  d5 {[%clk 0:02:54]} 5. Nf3 {[%clk 0:03:01]}  Be7 {[%clk 0:02:53]} 6. Bd3 {[%clk 0:02:59]}  O-O {[%clk 0:02:52]} 7. O-O {[%clk 0:02:59]}  dxc4 {[%clk 0:02:52]} 8. Bxc4 {[%clk 0:02:59]}  cxd4 {[%clk 0:02:51]} 9. exd4 {[%clk 0:02:59]}  Nd5 {[%clk 0:02:42]} 10. Re1 {[%clk 0:02:53]}  Nxc3 {[%clk 0:02:37]} 11. bxc3 {[%clk 0:02:52]}  Bf6 {[%clk 0:02:32]} 12. a4 {[%clk 0:02:48]}  Nc6 {[%clk 0:02:30]} 13. Ba3 {[%clk 0:02:48]}  Re8 {[%clk 0:02:29]} 14. Qc2 {[%clk 0:02:20]}  Qc7 {[%clk 0:02:23]} 15. Bd3 {[%clk 0:02:14]}  h6 {[%clk 0:02:21]} 16. Be4 {[%clk 0:02:00]}  b6 {[%clk 0:02:05]} 17. Bxc6 {[%clk 0:01:51]}  Qxc6 {[%clk 0:02:03]} 18. Ne5 {[%clk 0:01:52]}  Bxe5 {[%clk 0:01:56]} 19. Rxe5 {[%clk 0:01:53]}  Bb7 {[%clk 0:01:53]} 20. f4 {[%clk 0:01:42]}  Rac8 {[%clk 0:01:49]} 21. Bb2 {[%clk 0:01:39]}  Red8 {[%clk 0:01:40]} 22. Qf2 {[%clk 0:01:11]}  Rd5 {[%clk 0:01:18]} 23. Rxd5 {[%clk 0:00:57]}  Qxd5 {[%clk 0:01:15]} 24. a5 {[%clk 0:00:58]}  bxa5 {[%clk 0:01:04]} 25. Re1 {[%clk 0:00:57]}  a4 {[%clk 0:00:51]} 26. Ra1 {[%clk 0:00:18]}  Bc6 {[%clk 0:00:51]} 27. Ba3 {[%clk 0:00:13]}  Rb8 {[%clk 0:00:48]} 28. Bc5 {[%clk 0:00:11]}  a6 {[%clk 0:00:45]} 29. h3 {[%clk 0:00:08]}  Rb3 {[%clk 0:00:44]} 30. Qc2 {[%clk 0:00:07]}  a5 {[%clk 0:00:26]} 31. c4 {[%clk 0:00:06]}  Qh5 {[%clk 0:00:18]} 32. Qf2 {[%clk 0:00:04]}  Qg6 {[%clk 0:00:15]} 33. Kh2 {[%clk 0:00:03]}  h5 {[%clk 0:00:14]} 34. Qd2 {[%clk 0:00:01]}  Qg3+ {[%clk 0:00:13]} 0-1


[Site "https://www.chess.com"]

[Event "Titled Tuesday Blitz December 20 Early 2022"]
[White "forevery0ung"]
[Black "SaiHanThiha"]
[WhiteElo "2661"]
[BlackElo "2429"]
[Result "0-1"]
[Round "04"]
[TimeControl "180+2"]
[Date "2022.12.20"]
[WhiteClock "0:00:04"]
[BlackClock "0:00:11"]

1. Nf3 {[%clk 0:03:00]}  Nf6 {[%clk 0:03:00]} 2. g3 {[%clk 0:02:56]}  d5 {[%clk 0:03:00]} 3. Bg2 {[%clk 0:02:50]}  Bf5 {[%clk 0:03:00]} 4. O-O {[%clk 0:02:43]}  e6 {[%clk 0:03:00]} 5. Nh4 {[%clk 0:02:40]}  Bg4 {[%clk 0:03:00]} 6. h3 {[%clk 0:02:37]}  Bh5 {[%clk 0:03:00]} 7. g4 {[%clk 0:02:38]}  Nfd7 {[%clk 0:02:58]} 8. Nf3 {[%clk 0:02:36]}  Bg6 {[%clk 0:02:58]} 9. d3 {[%clk 0:02:34]}  h5 {[%clk 0:02:56]} 10. g5 {[%clk 0:02:33]}  h4 {[%clk 0:02:48]} 11. Nc3 {[%clk 0:02:32]}  c6 {[%clk 0:02:44]} 12. Bf4 {[%clk 0:02:33]}  Qe7 {[%clk 0:02:29]} 13. e4 {[%clk 0:02:28]}  d4 {[%clk 0:02:21]} 14. Nxd4 {[%clk 0:01:50]}  e5 {[%clk 0:02:21]} 15. Nf5 {[%clk 0:01:49]}  Qe6 {[%clk 0:02:08]} 16. Be3 {[%clk 0:01:41]}  Bxf5 {[%clk 0:02:07]} 17. exf5 {[%clk 0:01:42]}  Qxf5 {[%clk 0:02:08]} 18. Re1 {[%clk 0:01:42]}  Be7 {[%clk 0:02:07]} 19. Qd2 {[%clk 0:01:38]}  O-O {[%clk 0:02:06]} 20. Kh2 {[%clk 0:01:37]}  Na6 {[%clk 0:02:00]} 21. Rg1 {[%clk 0:01:36]}  Nac5 {[%clk 0:01:56]} 22. Raf1 {[%clk 0:01:33]}  Rad8 {[%clk 0:01:54]} 23. Qe2 {[%clk 0:01:29]}  Bxg5 {[%clk 0:01:41]} 24. Kh1 {[%clk 0:01:09]}  Bf4 {[%clk 0:01:33]} 25. Qf3 {[%clk 0:00:57]}  Ne6 {[%clk 0:01:12]} 26. Ne2 {[%clk 0:00:52]}  Nf6 {[%clk 0:00:55]} 27. Ng3 {[%clk 0:00:44]}  hxg3 {[%clk 0:00:52]} 28. fxg3 {[%clk 0:00:43]}  Ng5 {[%clk 0:00:45]} 29. Qe2 {[%clk 0:00:17]}  Nxh3 {[%clk 0:00:44]} 30. gxf4 {[%clk 0:00:11]}  Nxf4 {[%clk 0:00:42]} 31. Bxf4 {[%clk 0:00:10]}  exf4 {[%clk 0:00:42]} 32. Be4 {[%clk 0:00:07]}  Qh3+ {[%clk 0:00:29]} 33. Qh2 {[%clk 0:00:07]}  Qxh2+ {[%clk 0:00:29]} 34. Kxh2 {[%clk 0:00:07]}  Nxe4 {[%clk 0:00:30]} 35. dxe4 {[%clk 0:00:08]}  Rd2+ {[%clk 0:00:31]} 36. Rg2 {[%clk 0:00:07]}  Rfd8 {[%clk 0:00:25]} 37. Rff2 {[%clk 0:00:06]}  Rxf2 {[%clk 0:00:24]} 38. Rxf2 {[%clk 0:00:06]}  g5 {[%clk 0:00:24]} 39. Kh3 {[%clk 0:00:06]}  Kg7 {[%clk 0:00:23]} 40. Kg4 {[%clk 0:00:07]}  Kg6 {[%clk 0:00:24]} 41. Rh2 {[%clk 0:00:07]}  a5 {[%clk 0:00:22]} 42. e5 {[%clk 0:00:06]}  Re8 {[%clk 0:00:20]} 43. Re2 {[%clk 0:00:06]}  f5+ {[%clk 0:00:19]} 44. Kf3 {[%clk 0:00:06]}  Rd8 {[%clk 0:00:19]} 45. e6 {[%clk 0:00:05]}  Kf6 {[%clk 0:00:19]} 46. e7 {[%clk 0:00:05]}  Re8 {[%clk 0:00:19]} 47. Rd2 {[%clk 0:00:05]}  Rxe7 {[%clk 0:00:19]} 48. Rd6+ {[%clk 0:00:05]}  Re6 {[%clk 0:00:19]} 49. Rd7 {[%clk 0:00:05]}  Re3+ {[%clk 0:00:20]} 50. Kf2 {[%clk 0:00:05]}  Re7 {[%clk 0:00:20]} 51. Rd6+ {[%clk 0:00:05]}  Ke5 {[%clk 0:00:21]} 52. Rg6 {[%clk 0:00:05]}  g4 {[%clk 0:00:21]} 53. Ke2 {[%clk 0:00:04]}  Rh7 {[%clk 0:00:20]} 54. Kd3 {[%clk 0:00:03]}  f3 {[%clk 0:00:19]} 55. Ke3 {[%clk 0:00:03]}  f4+ {[%clk 0:00:18]} 56. Kd3 {[%clk 0:00:03]}  g3 {[%clk 0:00:17]} 57. Rg5+ {[%clk 0:00:02]}  Kf6 {[%clk 0:00:17]} 58. Rg8 {[%clk 0:00:02]}  Rg7 {[%clk 0:00:16]} 59. Rf8+ {[%clk 0:00:02]}  Kg5 {[%clk 0:00:14]} 60. Ke4 {[%clk 0:00:03]}  g2 {[%clk 0:00:13]} 61. Rf5+ {[%clk 0:00:03]}  Kh4 {[%clk 0:00:12]} 62. Rxf4+ {[%clk 0:00:03]}  Rg4 {[%clk 0:00:13]} 63. Kxf3 {[%clk 0:00:04]}  g1=Q {[%clk 0:00:12]} 64. Rf8 {[%clk 0:00:03]}  Qf1+ {[%clk 0:00:11]} 65. Ke3 {[%clk 0:00:04]}  Qxf8 {[%clk 0:00:11]} 0-1


[Site "https://www.chess.com"]

[Event "Titled Tuesday Blitz December 20 Early 2022"]
[White "googlegoom"]
[Black "Karjakin, Sergey"]
[BlackFideId "14109603"]
[WhiteElo "2581"]
[BlackElo "2747"]
[Result "0-1"]
[Round "04"]
[TimeControl "180+2"]
[Date "2022.12.20"]
[WhiteClock "0:00:02"]
[BlackClock "0:00:21"]

1. Nf3 {[%clk 0:02:59]}  d5 {[%clk 0:02:59]} 2. b3 {[%clk 0:02:59]}  Nf6 {[%clk 0:02:53]} 3. Bb2 {[%clk 0:02:59]}  g6 {[%clk 0:02:54]} 4. e3 {[%clk 0:02:59]}  Bg7 {[%clk 0:02:53]} 5. Be2 {[%clk 0:03:00]}  O-O {[%clk 0:02:53]} 6. O-O {[%clk 0:03:00]}  c5 {[%clk 0:02:53]} 7. d4 {[%clk 0:03:01]}  cxd4 {[%clk 0:02:53]} 8. Nxd4 {[%clk 0:03:01]}  Nc6 {[%clk 0:02:51]} 9. Nd2 {[%clk 0:03:02]}  Qc7 {[%clk 0:02:49]} 10. c4 {[%clk 0:03:01]}  Nxd4 {[%clk 0:02:42]} 11. Bxd4 {[%clk 0:03:01]}  e5 {[%clk 0:02:39]} 12. Bb2 {[%clk 0:03:02]}  d4 {[%clk 0:02:37]} 13. exd4 {[%clk 0:02:58]}  exd4 {[%clk 0:02:36]} 14. Bd3 {[%clk 0:02:38]}  Bg4 {[%clk 0:02:23]} 15. Qc2 {[%clk 0:02:34]}  Rad8 {[%clk 0:02:23]} 16. Rfe1 {[%clk 0:02:31]}  Nd7 {[%clk 0:02:04]} 17. b4 {[%clk 0:02:28]}  Ne5 {[%clk 0:02:04]} 18. Be4 {[%clk 0:02:13]}  d3 {[%clk 0:01:55]} 19. Qb3 {[%clk 0:02:05]}  b6 {[%clk 0:01:55]} 20. Bd5 {[%clk 0:01:53]}  Be2 {[%clk 0:01:52]} 21. Rac1 {[%clk 0:01:33]}  Ng4 {[%clk 0:01:47]} 22. g3 {[%clk 0:01:32]}  Rfe8 {[%clk 0:01:32]} 23. h3 {[%clk 0:00:43]}  Ne3 {[%clk 0:00:41]} 24. Bxg7 {[%clk 0:00:17]}  Kxg7 {[%clk 0:00:41]} 25. Qc3+ {[%clk 0:00:08]}  f6 {[%clk 0:00:31]} 26. fxe3 {[%clk 0:00:08]}  Qxg3+ {[%clk 0:00:29]} 27. Bg2 {[%clk 0:00:08]}  Qxe3+ {[%clk 0:00:23]} 28. Kh1 {[%clk 0:00:08]}  Rd4 {[%clk 0:00:23]} 29. Nf1 {[%clk 0:00:06]}  Qf4 {[%clk 0:00:22]} 30. Qd2 {[%clk 0:00:05]}  Qe5 {[%clk 0:00:20]} 31. c5 {[%clk 0:00:04]}  Rh4 {[%clk 0:00:20]} 32. c6 {[%clk 0:00:03]}  Qf5 {[%clk 0:00:19]} 33. c7 {[%clk 0:00:03]}  Rxh3+ {[%clk 0:00:19]} 34. Bxh3 {[%clk 0:00:03]}  Qxh3+ {[%clk 0:00:19]} 35. Nh2 {[%clk 0:00:04]}  Bf3+ {[%clk 0:00:20]} 36. Kg1 {[%clk 0:00:04]}  Qg3+ {[%clk 0:00:20]} 37. Kf1 {[%clk 0:00:04]}  Be2+ {[%clk 0:00:20]} 38. Rxe2 {[%clk 0:00:03]}  dxe2+ {[%clk 0:00:20]} 39. Qxe2 {[%clk 0:00:03]}  Qf4+ {[%clk 0:00:21]} 40. Kg2 {[%clk 0:00:02]}  Rxe2+ {[%clk 0:00:21]} 0-1


[Site "https://www.chess.com"]

[Event "Titled Tuesday Blitz December 20 Early 2022"]
[White "icychess54"]
[Black "Mone, Ved"]
[BlackFideId "25666290"]
[WhiteElo "2186"]
[BlackElo "1254"]
[Result "0-1"]
[Round "04"]
[TimeControl "180+2"]
[Date "2022.12.20"]
[WhiteClock "0:00:08"]
[BlackClock "0:01:27"]

1. c4 {[%clk 0:03:00]}  Nf6 {[%clk 0:03:00]} 2. Nf3 {[%clk 0:03:00]}  c6 {[%clk 0:02:59]} 3. Nc3 {[%clk 0:03:01]}  d5 {[%clk 0:03:00]} 4. e3 {[%clk 0:03:01]}  Bg4 {[%clk 0:02:59]} 5. b3 {[%clk 0:02:58]}  e6 {[%clk 0:02:58]} 6. Bb2 {[%clk 0:02:58]}  Nbd7 {[%clk 0:02:58]} 7. Be2 {[%clk 0:02:58]}  Bd6 {[%clk 0:02:56]} 8. O-O {[%clk 0:02:54]}  O-O {[%clk 0:02:56]} 9. Nd4 {[%clk 0:02:49]}  Bxe2 {[%clk 0:02:51]} 10. Qxe2 {[%clk 0:02:50]}  a5 {[%clk 0:02:47]} 11. f4 {[%clk 0:02:46]}  Nc5 {[%clk 0:02:34]} 12. cxd5 {[%clk 0:02:46]}  exd5 {[%clk 0:02:34]} 13. Rac1 {[%clk 0:02:28]}  Qd7 {[%clk 0:02:27]} 14. Kh1 {[%clk 0:02:18]}  Rfe8 {[%clk 0:02:25]} 15. h3 {[%clk 0:02:07]}  a4 {[%clk 0:02:24]} 16. b4 {[%clk 0:02:04]}  Nce4 {[%clk 0:02:24]} 17. Nxe4 {[%clk 0:02:03]}  Nxe4 {[%clk 0:02:25]} 18. Rf3 {[%clk 0:01:35]}  Bxb4 {[%clk 0:02:22]} 19. d3 {[%clk 0:01:25]}  Nf6 {[%clk 0:02:14]} 20. g4 {[%clk 0:01:20]}  a3 {[%clk 0:02:10]} 21. Ba1 {[%clk 0:01:19]}  Bf8 {[%clk 0:01:42]} 22. Rg1 {[%clk 0:00:54]}  c5 {[%clk 0:01:37]} 23. Nf5 {[%clk 0:00:53]}  d4 {[%clk 0:01:37]} 24. e4 {[%clk 0:00:49]}  c4 {[%clk 0:01:37]} 25. Bxd4 {[%clk 0:00:40]}  cxd3 {[%clk 0:01:37]} 26. Rxd3 {[%clk 0:00:39]}  Nxe4 {[%clk 0:01:37]} 27. Be5 {[%clk 0:00:27]}  Qxd3 {[%clk 0:01:36]} 28. Qg2 {[%clk 0:00:19]}  Ng5 {[%clk 0:01:27]} 29. h4 {[%clk 0:00:14]}  Qh3+ {[%clk 0:01:26]} 30. Qxh3 {[%clk 0:00:13]}  Nxh3 {[%clk 0:01:26]} 31. Rg3 {[%clk 0:00:13]}  Nf2+ {[%clk 0:01:26]} 32. Kg2 {[%clk 0:00:13]}  Ne4 {[%clk 0:01:26]} 33. Re3 {[%clk 0:00:11]}  Nd2 {[%clk 0:01:27]} 34. g5 {[%clk 0:00:11]}  Nc4 {[%clk 0:01:27]} 35. Rg3 {[%clk 0:00:08]}  Nxe5 {[%clk 0:01:26]} 36. fxe5 {[%clk 0:00:08]}  Rxe5 {[%clk 0:01:27]} 0-1


[Site "https://www.chess.com"]

[Event "Titled Tuesday Blitz December 20 Early 2022"]
[White "kidagent"]
[Black "Nenezic, Marko"]
[BlackFideId "912123"]
[WhiteElo "2292"]
[BlackElo "2514"]
[Result "1/2-1/2"]
[Round "04"]
[TimeControl "180+2"]
[Date "2022.12.20"]
[WhiteClock "0:00:10"]
[BlackClock "0:00:11"]

1. e4 {[%clk 0:02:54]}  e6 {[%clk 0:02:59]} 2. d4 {[%clk 0:02:54]}  d5 {[%clk 0:03:00]} 3. Nd2 {[%clk 0:02:51]}  Nf6 {[%clk 0:02:59]} 4. e5 {[%clk 0:02:51]}  Nfd7 {[%clk 0:02:59]} 5. f4 {[%clk 0:02:52]}  b6 {[%clk 0:02:57]} 6. Ngf3 {[%clk 0:02:49]}  a5 {[%clk 0:02:56]} 7. c3 {[%clk 0:02:48]}  g6 {[%clk 0:02:55]} 8. Bd3 {[%clk 0:02:46]}  Ba6 {[%clk 0:02:54]} 9. Qe2 {[%clk 0:02:46]}  Bxd3 {[%clk 0:02:51]} 10. Qxd3 {[%clk 0:02:46]}  c5 {[%clk 0:02:51]} 11. O-O {[%clk 0:02:43]}  Nc6 {[%clk 0:02:48]} 12. a3 {[%clk 0:02:40]}  Qc8 {[%clk 0:02:47]} 13. Re1 {[%clk 0:02:25]}  Qa6 {[%clk 0:02:46]} 14. Qxa6 {[%clk 0:02:25]}  Rxa6 {[%clk 0:02:45]} 15. a4 {[%clk 0:02:21]}  cxd4 {[%clk 0:02:33]} 16. cxd4 {[%clk 0:02:19]}  Nb4 {[%clk 0:02:18]} 17. Rd1 {[%clk 0:02:11]}  Be7 {[%clk 0:02:16]} 18. Nb1 {[%clk 0:02:01]}  O-O {[%clk 0:02:13]} 19. Nc3 {[%clk 0:02:00]}  Rc8 {[%clk 0:02:10]} 20. Bd2 {[%clk 0:01:55]}  Raa8 {[%clk 0:01:56]} 21. Rac1 {[%clk 0:01:50]}  Nb8 {[%clk 0:01:35]} 22. Kf1 {[%clk 0:01:44]}  N8c6 {[%clk 0:01:29]} 23. Ke2 {[%clk 0:01:42]}  Na7 {[%clk 0:01:24]} 24. Ne1 {[%clk 0:01:35]}  Rc6 {[%clk 0:01:17]} 25. Nb5 {[%clk 0:01:19]}  Nxb5 {[%clk 0:01:04]} 26. axb5 {[%clk 0:01:19]}  Rcc8 {[%clk 0:00:58]} 27. Rxc8+ {[%clk 0:01:06]}  Rxc8 {[%clk 0:00:57]} 28. Rc1 {[%clk 0:01:07]}  Rxc1 {[%clk 0:00:56]} 29. Bxc1 {[%clk 0:01:06]}  h5 {[%clk 0:00:45]} 30. Be3 {[%clk 0:00:55]}  Kf8 {[%clk 0:00:44]} 31. Kd2 {[%clk 0:00:52]}  Ke8 {[%clk 0:00:43]} 32. h3 {[%clk 0:00:48]}  Kd7 {[%clk 0:00:41]} 33. g4 {[%clk 0:00:47]}  hxg4 {[%clk 0:00:40]} 34. hxg4 {[%clk 0:00:47]}  Ke8 {[%clk 0:00:24]} 35. Bf2 {[%clk 0:00:35]}  Na2 {[%clk 0:00:22]} 36. Ng2 {[%clk 0:00:33]}  Nb4 {[%clk 0:00:18]} 37. Ne3 {[%clk 0:00:31]}  Na2 {[%clk 0:00:16]} 38. f5 {[%clk 0:00:26]}  gxf5 {[%clk 0:00:16]} 39. gxf5 {[%clk 0:00:26]}  Bg5 {[%clk 0:00:16]} 40. f6 {[%clk 0:00:17]}  Nb4 {[%clk 0:00:13]} 41. Ke2 {[%clk 0:00:14]}  Bxe3 {[%clk 0:00:13]} 42. Bxe3 {[%clk 0:00:12]}  Kf8 {[%clk 0:00:12]} 43. Bd2 {[%clk 0:00:11]}  Kg8 {[%clk 0:00:09]} 44. Bxb4 {[%clk 0:00:09]}  axb4 {[%clk 0:00:09]} 45. Kf3 {[%clk 0:00:10]}  Kh7 {[%clk 0:00:09]} 46. Kg4 {[%clk 0:00:10]}  Kg6 {[%clk 0:00:09]} 47. b3 {[%clk 0:00:09]}  Kh6 {[%clk 0:00:10]} 48. Kh4 {[%clk 0:00:09]}  Kg6 {[%clk 0:00:10]} 49. Kg4 {[%clk 0:00:09]}  Kh6 {[%clk 0:00:10]} 50. Kh4 {[%clk 0:00:10]}  Kg6 {[%clk 0:00:11]} 51. Kg4 {[%clk 0:00:10]} 1/2-1/2


[Site "https://www.chess.com"]

[Event "Titled Tuesday Blitz December 20 Early 2022"]
[White "milovichalex"]
[Black "KerryStead"]
[WhiteElo "2303"]
[BlackElo "2033"]
[Result "1-0"]
[Round "04"]
[TimeControl "180+2"]
[Date "2022.12.20"]
[WhiteClock "0:00:04"]
[BlackClock "0:00:01"]

1. e4 {[%clk 0:03:00]}  c6 {[%clk 0:02:59]} 2. d4 {[%clk 0:03:00]}  d5 {[%clk 0:02:59]} 3. Nc3 {[%clk 0:03:01]}  dxe4 {[%clk 0:02:57]} 4. Nxe4 {[%clk 0:03:01]}  Bf5 {[%clk 0:02:58]} 5. Ng3 {[%clk 0:03:02]}  Bg6 {[%clk 0:02:58]} 6. Nh3 {[%clk 0:03:02]}  Nf6 {[%clk 0:02:55]} 7. Nf4 {[%clk 0:03:03]}  e6 {[%clk 0:02:55]} 8. h4 {[%clk 0:03:02]}  Bf5 {[%clk 0:02:43]} 9. Nxf5 {[%clk 0:03:00]}  exf5 {[%clk 0:02:44]} 10. Bc4 {[%clk 0:02:58]}  Bd6 {[%clk 0:02:42]} 11. Qe2+ {[%clk 0:02:51]}  Qe7 {[%clk 0:02:36]} 12. Qxe7+ {[%clk 0:02:50]}  Kxe7 {[%clk 0:02:37]} 13. f3 {[%clk 0:02:44]}  Re8 {[%clk 0:02:34]} 14. Kf2 {[%clk 0:02:43]}  Nbd7 {[%clk 0:02:33]} 15. c3 {[%clk 0:02:41]}  Nb6 {[%clk 0:02:19]} 16. Bd3 {[%clk 0:02:38]}  g6 {[%clk 0:02:18]} 17. Nh3 {[%clk 0:02:34]}  h5 {[%clk 0:02:13]} 18. Bg5 {[%clk 0:02:32]}  Nd7 {[%clk 0:02:11]} 19. Bh6 {[%clk 0:02:20]}  Kd8 {[%clk 0:02:06]} 20. c4 {[%clk 0:02:17]}  c5 {[%clk 0:02:01]} 21. dxc5 {[%clk 0:01:54]}  Bxc5+ {[%clk 0:02:00]} 22. Kf1 {[%clk 0:01:54]}  Ne5 {[%clk 0:01:52]} 23. Be2 {[%clk 0:01:51]}  Nfd7 {[%clk 0:01:46]} 24. Rd1 {[%clk 0:01:48]}  Kc7 {[%clk 0:01:46]} 25. a3 {[%clk 0:01:45]}  a5 {[%clk 0:01:45]} 26. Bf4 {[%clk 0:01:42]}  f6 {[%clk 0:01:43]} 27. Bd2 {[%clk 0:01:37]}  Nc6 {[%clk 0:01:17]} 28. Nf4 {[%clk 0:01:34]}  Nce5 {[%clk 0:00:44]} 29. b4 {[%clk 0:01:28]}  axb4 {[%clk 0:00:43]} 30. axb4 {[%clk 0:01:28]}  Bf8 {[%clk 0:00:36]} 31. Nd5+ {[%clk 0:01:24]}  Kc8 {[%clk 0:00:28]} 32. c5 {[%clk 0:01:17]}  Ra2 {[%clk 0:00:25]} 33. Bb5 {[%clk 0:01:14]}  Re6 {[%clk 0:00:19]} 34. Kf2 {[%clk 0:00:53]}  b6 {[%clk 0:00:15]} 35. c6 {[%clk 0:00:48]}  Nxc6 {[%clk 0:00:15]} 36. Rhe1 {[%clk 0:00:36]}  Nd4 {[%clk 0:00:11]} 37. Rxe6 {[%clk 0:00:31]}  Nxe6 {[%clk 0:00:12]} 38. Kf1 {[%clk 0:00:24]}  Ne5 {[%clk 0:00:12]} 39. Nxb6+ {[%clk 0:00:20]}  Kb7 {[%clk 0:00:12]} 40. Nd5 {[%clk 0:00:16]}  Nd4 {[%clk 0:00:11]} 41. Be8 {[%clk 0:00:13]}  Nb3 {[%clk 0:00:07]} 42. Be3 {[%clk 0:00:10]}  Nc4 {[%clk 0:00:07]} 43. Bf2 {[%clk 0:00:10]}  Nbd2+ {[%clk 0:00:06]} 44. Kg1 {[%clk 0:00:10]}  Bd6 {[%clk 0:00:03]} 45. Bxg6 {[%clk 0:00:09]}  f4 {[%clk 0:00:01]} 46. Nxf6 {[%clk 0:00:04]} 1-0


[Site "https://www.chess.com"]